fUST/lending_fUST_20250929
["ID","MTS","AMOUNT","RATE_DAILY","PERIOD"]
[388319812,1759086640308,-154.533476,0.0003255,7]
[388319813,1759086640317,-151.0,0.0003255,7]
[388319814,1759086640326,-154.853042,0.0003255,7]
[388319815,1759086640335,-151.0,0.0003255,7]
[388319816,1759086640344,-152.360311,0.0003255,7]
[388319817,1759086640353,-151.0,0.0003255,7]
[388319818,1759086640362,-151.0,0.0003255,7]
[388319819,1759086640371,-153.640678,0.0003255,7]
[388319820,1759086640380,-151.0,0.0003255,7]
[388319821,1759086640389,-151.0,0.0003255,7]
[388319822,1759086640398,-152.089334,0.0003255,7]
[388319823,1759086640407,-151.0,0.0003255,7]
[388319824,1759086640417,-151.0,0.0003255,7]
[388319825,1759086640426,-151.0,0.0003255,7]
[388319826,1759086640436,-151.0,0.0003255,7]
[388319827,1759086640445,-151.0,0.0003255,7]
[388319828,1759086640454,-151.0,0.0003255,7]
[388319829,1759086640463,-151.0,0.0003255,7]
[388319830,1759086640472,-151.0,0.0003255,7]
[388319831,1759086640480,-151.0,0.0003255,7]
[388319832,1759086640489,-151.0,0.0003255,7]
[388319833,1759086640498,-280.803437,0.0003255,7]
[388319834,1759086640507,-10000.0,0.0003255,7]
[388319835,1759086640515,-10000.0,0.0003255,7]
[388319836,1759086640524,-8912.58825099,0.0003255,7]
[388319837,1759086640539,-1087.41174901,0.0003255,7]
[388319838,1759086640547,-2774.06807695,0.0003255,7]
[388319839,1759086641050,-3023.19944128,0.0003255,7]
[388319840,1759086641061,-399.50052852,0.0003255,7]
[388319843,1759086641741,-26.24578117,0.0003255,7]
[388319845,1759086641782,-3313.0,0.0003255,7]
[388319846,1759086641798,-463.98617208,0.0003255,7]
[388319847,1759086641809,-10000.0,0.0003255,7]
[388319848,1759086641819,-10000.0,0.0003255,7]
[388319849,1759086641832,-10000.0,0.0003255,7]
[388319850,1759086641847,-10000.0,0.0003255,7]
[388319851,1759086641859,-10000.0,0.0003255,7]
[388319852,1759086641870,-151.0,0.0003255,7]
[388319853,1759086641883,-151.0,0.0003255,7]
[388319854,1759086641895,-151.0,0.0003255,7]
[388319855,1759086641905,-207.382341,0.0003255,7]
[388319856,1759086641916,-151.0,0.0003255,7]
[388319857,1759086641931,-151.0,0.0003255,7]
[388319858,1759086641943,-151.0,0.0003255,7]
[388319859,1759086641955,-240.984144,0.0003255,7]
[388319860,1759086641968,-151.0,0.0003255,7]
[388319861,1759086641980,-151.0,0.0003255,7]
[388319862,1759086641992,-188.487078,0.0003255,7]
[388319863,1759086642004,-33631.18594824,0.0003255,2]
[388319878,1759086673098,5000.0,0.00025205,2]
[388319879,1759086720363,412.73424557,0.00025205,2]
[388319881,1759086757197,417.15472785,0.00025205,2]
[388319882,1759086816541,1414.44046146,0.00025205,2]
[388319884,1759086849991,160.0,0.00025205,2]
[388319889,1759087471360,160.0,0.00025205,2]
[388319893,1759087669347,2435.68056512,0.00018,2]
[388319894,1759087669370,4802.55356621,0.00018,2]
[388319895,1759087711210,5197.45643379,0.00017,2]
[388319896,1759087711232,9741.98359605,0.00017,2]
[388319897,1759087713936,258.02640395,0.00015,2]
[388319898,1759087713957,10000.01,0.00015,2]
[388319899,1759087713978,10000.01,0.00015,2]
[388319900,1759087714001,11605.43967728,0.00015,2]
[388319901,1759087715211,586.55948282,0.000149,2]
[388319903,1759087721263,2958.68251968,0.00023,2]
[388319904,1759087721499,619.50640528,0.000215,2]
[388319905,1759087721562,6421.82107504,0.0002465,2]
[388319907,1759087732396,-182.5258603,0.00024403,2]
[388319908,1759087734219,-227.32182254,0.00024403,2]
[388319909,1759087736749,-227.32182254,0.00024403,2]
[388319910,1759087737994,-1834.6209698,0.00024403,2]
[388319911,1759087738110,-1095.0831042,0.0002465,2]
[388319912,1759087738263,-2190.1662084,0.0002465,2]
[388319913,1759087738451,-4380.3324168,0.0002465,2]
[388319914,1759087748044,-2174.36496538,0.00024159,2]
[388319915,1759087748074,-1239.3451664,0.0002465,2]
[388319916,1759087748100,-507.49528633,0.0002465,2]
[388319917,1759087759134,-4615.35631047,0.00025739,2]
[388319918,1759087771877,1431.50839587,0.00025205,2]
[388319919,1759087800772,726.09076791,0.00025205,2]
[388319920,1759087800794,360.6166693,0.00025205,2]
[388319921,1759087806313,150.0,0.000249,2]
[388319938,1759087832332,-216.06,0.000253,2]
[388319939,1759087832342,-4378.85525017,0.00025482,2]
[388319940,1759087832351,-384.64368953,0.00025739,2]
[388319941,1759087832361,-300.0,0.00025999,2]
[388319942,1759087832370,-300.0,0.00025999,2]
[388319943,1759087832380,-300.0,0.00025999,2]
[388319944,1759087832389,-1200.0,0.00025999,2]
[388319945,1759087832398,-9683.46441198,0.00026,10]
[388319947,1759087832408,-14354.7715972,0.00026553,2]
[388319950,1759087832417,-496.3359487,0.00027786,30]
[388319953,1759087832426,-420.0,0.00028137,2]
[388319956,1759087832436,-559.0,0.00028262,2]
[388319958,1759087832444,-204.59895898,0.00028364,2]
[388319960,1759087832454,-160.0,0.00028435,2]
[388319962,1759087832463,-160.0,0.00028438,2]
[388319964,1759087832472,-725.925363,0.00028606,2]
[388319966,1759087832482,-306.19686226,0.00028999,2]
[388319968,1759087832492,-810.61830266,0.00028999,2]
[388319970,1759087832500,-810.61830266,0.00028999,2]
[388319972,1759087832511,-810.61830266,0.00028999,2]
[388319974,1759087832525,-810.61830266,0.00028999,2]
[388319976,1759087832534,-810.61830266,0.00028999,2]
[388319978,1759087832543,-160.0,0.00029,10]
[388319980,1759087832552,-160.0,0.00029,10]
[388319982,1759087832563,-50000.0,0.00029,2]
[388319984,1759087832572,-463.29,0.00029383,10]
[388319986,1759087832581,-500.0,0.00029393,2]
[388319988,1759087832592,-500.0,0.00029393,2]
[388319990,1759087832601,-500.0,0.00029393,2]
[388319992,1759087832610,-500.0,0.00029393,2]
[388319994,1759087832620,-301.25254859,0.00029393,2]
[388319996,1759087832630,-500.0,0.00029393,2]
[388319998,1759087832639,-500.0,0.00029393,2]
[388320000,1759087832648,-500.0,0.00029393,2]
[388320002,1759087832658,-500.0,0.00029393,2]
[388320004,1759087832667,-500.0,0.00029393,2]
[388320006,1759087832676,-509.28567995,0.00029393,2]
[388320008,1759087832685,-500.0,0.00029393,2]
[388320010,1759087832695,-500.0,0.00029393,2]
[388320012,1759087832704,-500.0,0.00029393,2]
[388320014,1759087832713,-500.0,0.00029393,2]
[388320016,1759087832722,-500.0,0.00029393,2]
[388320018,1759087832731,-500.0,0.00029393,2]
[388320020,1759087832740,-500.0,0.00029393,2]
[388320022,1759087832750,-500.0,0.00029393,2]
[388320024,1759087832759,-500.0,0.00029393,2]
[388320026,1759087832768,-500.0,0.00029393,2]
[388320028,1759087832777,-500.0,0.00029393,2]
[388320030,1759087832786,-500.0,0.00029393,2]
[388320032,1759087832795,-500.0,0.00029393,2]
[388320034,1759087832805,-500.0,0.00029393,2]
[388320036,1759087832814,-500.0,0.00029393,2]
[388320038,1759087832823,-363.36633741,0.00029393,2]
[388320040,1759087832832,-500.0,0.00029393,2]
[388320042,1759087832841,-500.0,0.00029393,2]
[388320044,1759087832850,-500.0,0.00029393,2]
[388320046,1759087832861,-500.0,0.00029393,2]
[388320048,1759087832870,-500.0,0.00029393,2]
[388320049,1759087832880,-500.0,0.00029393,2]
[388320050,1759087832889,-500.0,0.00029393,2]
[388320051,1759087832899,-500.0,0.00029393,2]
[388320052,1759087832908,-500.0,0.00029393,2]
[388320053,1759087832917,-500.0,0.00029393,2]
[388320055,1759087832927,-500.0,0.00029393,2]
[388320057,1759087832936,-500.0,0.00029393,2]
[388320059,1759087832945,-500.0,0.00029393,2]
[388320061,1759087832955,-313.90427421,0.00029393,2]
[388320066,1759087833048,-810.61830266,0.00028999,2]
[388320067,1759087833057,-810.61830266,0.00028999,2]
[388320068,1759087833067,-500.0,0.00029393,2]
[388320070,1759087833076,-500.0,0.00029393,2]
[388320072,1759087833085,-500.0,0.00029393,2]
[388320074,1759087833094,-500.0,0.00029393,2]
[388320075,1759087833103,-500.0,0.00029393,2]
[388320076,1759087833111,-500.0,0.00029393,2]
[388320077,1759087833121,-500.0,0.00029393,2]
[388320078,1759087833130,-500.0,0.00029393,2]
[388320079,1759087833139,-500.0,0.00029393,2]
[388320080,1759087833149,-500.0,0.00029393,2]
[388320081,1759087833159,-500.0,0.00029393,2]
[388320082,1759087833168,-496.29534726,0.00029393,2]
[388320083,1759087833178,-500.0,0.00029393,2]
[388320084,1759087833188,-500.0,0.00029393,2]
[388320085,1759087833198,-500.0,0.00029393,2]
[388320086,1759087833208,-500.0,0.00029393,2]
[388320087,1759087833217,-500.0,0.00029393,2]
[388320088,1759087833227,-603.73527764,0.00029393,2]
[388320089,1759087833237,-37400.0076364,0.00029394,2]
[388320090,1759087833246,-1200.0,0.00029402,2]
[388320091,1759087833255,-500.0,0.00029415,2]
[388320092,1759087833265,-160.0,0.00029498,2]
[388320093,1759087833274,-255.12,0.0002988,3]
[388320094,1759087833283,-510.23,0.0002989,3]
[388320095,1759087833292,-765.37,0.0002989,3]
[388320096,1759087833301,-1144.29429689,0.000299,2]
[388320097,1759087833311,-1020.46,0.0002999,3]
[388320098,1759087833320,-160.0,0.0003,10]
[388320099,1759087833329,-1761.56576743,0.0003,2]
[388320100,1759087833338,-2000.01,0.0003,2]
[388320101,1759087833349,-250.0,0.00030012,2]
[388320102,1759087833359,-260.0,0.00030046,2]
[388320103,1759087833369,-587.0,0.0003045,2]
[388320104,1759087833379,-360.0,0.00030594,2]
[388320105,1759087833389,-151.0,0.00030665,2]
[388320106,1759087833399,-502.8782373,0.00030699,2]
[388320107,1759087833408,-257.6,0.00030707,14]
[388320108,1759087833418,-1144.29429687,0.00030892,2]
[388320109,1759087833427,-460.0,0.00031142,2]
[388320110,1759087833437,-168.0,0.00031158,2]
[388320111,1759087833447,-151.0,0.00031213,2]
[388320112,1759087833456,-510.24,0.0003125,3]
[388320113,1759087833466,-257.6,0.00031255,15]
[388320114,1759087833475,-1020.46,0.0003126,3]
[388320115,1759087833484,-2040.92,0.0003136,3]
[388320116,1759087833493,-500.0,0.00031568,7]
[388320117,1759087833503,-341.20185334,0.00031573,2]
[388320118,1759087833517,-560.0,0.0003169,2]
[388320119,1759087833530,-422.0,0.00031708,3]
[388320120,1759087833540,-37400.0076364,0.00031733,2]
[388320121,1759087833550,-1802.99,0.00031743,2]
[388320122,1759087833562,-1802.99,0.00031743,2]
[388320123,1759087833571,-1802.99,0.00031743,2]
[388320124,1759087833580,-1802.99,0.00031743,2]
[388320125,1759087833592,-1802.99,0.00031743,2]
[388320126,1759087833601,-1802.99,0.00031744,2]
[388320127,1759087833611,-1802.99,0.00031754,2]
[388320128,1759087833621,-151.0,0.00031761,2]
[388320129,1759087833631,-257.6,0.00031803,16]
[388320130,1759087833641,-168.0,0.00031874,2]
[388320131,1759087833652,-1144.29429687,0.00031885,2]
[388320132,1759087833662,-168.0,0.00031988,2]
[388320133,1759087833671,-372.99456277,0.00032,120]
[388320134,1759087833680,-256.07565556,0.00032,120]
[388320135,1759087833689,-183.04912653,0.00032,120]
[388320136,1759087833699,-1005.351959,0.00032,9]
[388320137,1759087833708,-502.8782373,0.00032096,2]
[388320138,1759087833717,-168.0,0.00032121,2]
[388320139,1759087833727,-660.0,0.00032237,2]
[388320140,1759087833736,-800.0,0.00032296,2]
[388320141,1759087833746,-372.99456277,0.000323,120]
[388320142,1759087833755,-256.07565556,0.000323,120]
[388320143,1759087833764,-183.04912653,0.000323,120]
[388320144,1759087833773,-151.0,0.00032309,2]
[388320145,1759087833783,-1802.99,0.0003233,2]
[388320146,1759087833792,-257.6,0.00032351,17]
[388320147,1759087833802,-500.0,0.00032373,2]
[388320148,1759087833812,-151.0,0.00032373,2]
[388320149,1759087833821,-155.70663066,0.00032373,2]
[388320150,1759087833830,-151.0,0.00032373,2]
[388320151,1759087833839,-800.0,0.00032382,2]
[388320152,1759087833848,-872.71639607,0.00032481,2]
[388320153,1759087833858,-1000.0,0.000325,9]
[388320154,1759087833867,-150.409609,0.000325,2]
[388320155,1759087833877,-168.0,0.00032523,2]
[388320156,1759087833886,-37400.0076364,0.00032539,2]
[388320157,1759087833895,-1802.99,0.0003254,2]
[388320158,1759087833903,-1802.99,0.0003254,2]
[388320159,1759087833913,-1802.99,0.0003254,2]
[388320160,1759087833922,-1802.99,0.0003254,2]
[388320161,1759087833932,-1802.99,0.0003254,2]
[388320162,1759087833941,-1802.99,0.0003254,2]
[388320163,1759087833950,-1802.99,0.0003254,2]
[388320164,1759087833959,-1802.99,0.0003254,2]
[388320165,1759087833968,-3291.370643,0.0003254,2]
[388320166,1759087833977,-1802.99,0.00032549,2]
[388320167,1759087833987,-1802.99,0.00032549,2]
[388320168,1759087833996,-1802.99,0.00032549,2]
[388320169,1759087834006,-1802.99,0.00032549,2]
[388320170,1759087834016,-1802.99,0.00032549,2]
[388320171,1759087834025,-1802.99,0.00032549,2]
[388320172,1759087834035,-1802.99,0.00032549,2]
[388320173,1759087834045,-1803.07955693,0.00032549,2]
[388320174,1759087834054,-151.0,0.0003255,7]
[388320175,1759087834063,-151.0,0.0003255,7]
[388320176,1759087834072,-152.82269,0.0003255,7]
[388320177,1759087834082,-151.829131,0.0003255,7]
[388320178,1759087834091,-189.35579204,0.000326,7]
[388320179,1759087834101,-151.0,0.000326,12]
[388320180,1759087834110,-372.99456277,0.000326,120]
[388320181,1759087834119,-256.07565556,0.000326,120]
[388320182,1759087834128,-183.04912653,0.000326,120]
[388320183,1759087834138,-151.0,0.000326,14]
[388320184,1759087834148,-500.0,0.00032647,2]
[388320185,1759087834157,-166.86303812,0.00032647,2]
[388320186,1759087834166,-151.0,0.00032647,2]
[388320187,1759087834179,-168.0,0.00032691,2]
[388320188,1759087834188,-760.0,0.00032785,2]
[388320189,1759087834429,-168.0,0.00032841,2]
[388320190,1759087834438,-151.0,0.00032857,2]
[388320191,1759087834448,-160.0,0.00032876,7]
[388320192,1759087834457,-150.0,0.00032876,2]
[388320193,1759087834467,-300.0,0.00032876,2]
[388320194,1759087834476,-450.0,0.00032876,2]
[388320195,1759087834485,-600.0,0.00032876,2]
[388320196,1759087834496,-750.0,0.00032876,2]
[388320197,1759087834505,-308.79622481,0.00032876,2]
[388320198,1759087834517,-500.0,0.00032876,120]
[388320199,1759087834526,-1145.074539,0.00032877,2]
[388320200,1759087834536,-1144.29429687,0.00032877,2]
[388320201,1759087834545,-222.55367906,0.0003288,2]
[388320202,1759087834556,-257.6,0.00032899,18]
[388320203,1759087834566,-151.0,0.000329,11]
[388320204,1759087834577,-500.0,0.00032921,2]
[388320205,1759087834586,-197.0,0.00032921,2]
[388320206,1759087834596,-823.0,0.00032954,2]
[388320207,1759087834606,-372.99456277,0.00033,120]
[388320208,1759087834616,-256.07565556,0.00033,120]
[388320209,1759087834625,-168.0,0.0003301,2]
[388320210,1759087834634,-500.0,0.00033013,120]
[388320211,1759087834644,-166.0,0.00033037,7]
[388320212,1759087834652,-166.0,0.00033037,7]
[388320213,1759087834661,-166.0,0.00033037,7]
[388320214,1759087834671,-172.0,0.00033037,7]
[388320215,1759087834680,-173.15955965,0.00033037,7]
[388320216,1759087834689,-168.0,0.00033068,2]
[388320217,1759087834699,-151.0,0.000331,14]
[388320218,1759087834708,-37400.0076364,0.00033118,2]
[388320219,1759087834717,-19270.56968528,0.0003312,2]
[388320220,1759087834727,-175.39054868,0.00033128,7]
[388320221,1759087834736,-156.0,0.00033128,7]
[388320222,1759087834745,-162.87678413,0.00033128,7]
[388320223,1759087834755,-329.0,0.00033128,7]
[388320224,1759087834763,-329.0,0.00033128,7]
[388320225,1759087834772,-329.0,0.00033128,7]
[388320226,1759087834782,-329.0,0.00033128,7]
[388320227,1759087834791,-329.0,0.00033128,7]
[388320228,1759087834800,-329.0,0.00033128,7]
[388320229,1759087834809,-329.0,0.00033128,7]
[388320230,1759087834818,-329.0,0.00033128,7]
[388320231,1759087834828,-329.0,0.00033128,7]
[388320232,1759087834837,-329.0,0.00033128,7]
[388320233,1759087834847,-329.0,0.00033128,7]
[388320234,1759087834856,-329.0,0.00033128,7]
[388320235,1759087834865,-329.0,0.00033128,7]
[388320236,1759087834874,-329.0,0.00033128,7]
[388320237,1759087834883,-329.0,0.00033128,7]
[388320238,1759087834893,-329.0,0.00033128,7]
[388320239,1759087834902,-329.0,0.00033128,7]
[388320240,1759087834911,-329.0,0.00033128,7]
[388320241,1759087834920,-329.0,0.00033128,7]
[388320242,1759087834929,-329.0,0.00033128,7]
[388320243,1759087834939,-329.0,0.00033128,7]
[388320244,1759087834948,-329.0,0.00033128,7]
[388320245,1759087834957,-329.0,0.00033128,7]
[388320246,1759087834967,-329.0,0.00033128,7]
[388320247,1759087834976,-329.0,0.00033128,7]
[388320248,1759087834985,-329.0,0.00033128,7]
[388320249,1759087834994,-329.0,0.00033128,7]
[388320250,1759087835004,-329.0,0.00033128,7]
[388320251,1759087835013,-329.0,0.00033128,7]
[388320252,1759087835022,-329.0,0.00033128,7]
[388320253,1759087835031,-329.0,0.00033128,7]
[388320254,1759087835041,-329.0,0.00033128,7]
[388320255,1759087835050,-329.0,0.00033128,7]
[388320256,1759087835059,-329.0,0.00033128,7]
[388320257,1759087835068,-329.0,0.00033128,7]
[388320258,1759087835077,-329.0,0.00033128,7]
[388320259,1759087835086,-329.0,0.00033128,7]
[388320260,1759087835095,-329.0,0.00033128,7]
[388320261,1759087835105,-329.0,0.00033128,7]
[388320262,1759087835114,-329.0,0.00033128,7]
[388320263,1759087835123,-329.0,0.00033128,7]
[388320264,1759087835132,-291.81626889,0.00033128,7]
[388320265,1759087835141,-500.0,0.0003315,120]
[388320266,1759087835150,-430.53080367,0.00033195,2]
[388320267,1759087835159,-3000.0,0.000332,15]
[388320268,1759087835169,-151.0,0.000332,20]
[388320269,1759087835178,-3000.0,0.0003321,15]
[388320270,1759087835187,-5480.136749,0.0003322,15]
[388320271,1759087835197,-153.0,0.00033247,2]
[388320272,1759087835206,-153.0,0.00033247,2]
[388320273,1759087835215,-153.0,0.00033247,2]
[388320274,1759087835224,-153.0,0.00033247,2]
[388320275,1759087835232,-153.0,0.00033247,2]
[388320276,1759087835242,-153.0,0.00033247,2]
[388320277,1759087835251,-153.0,0.00033247,2]
[388320278,1759087835260,-153.0,0.00033247,2]
[388320279,1759087835270,-153.0,0.00033247,2]
[388320280,1759087835279,-153.0,0.00033247,2]
[388320281,1759087835288,-153.0,0.00033247,2]
[388320282,1759087835298,-153.0,0.00033247,2]
[388320283,1759087835307,-153.0,0.00033247,2]
[388320284,1759087835316,-153.0,0.00033247,2]
[388320285,1759087835325,-153.0,0.00033247,2]
[388320286,1759087835334,-153.0,0.00033247,2]
[388320287,1759087835343,-153.0,0.00033247,2]
[388320288,1759087835352,-153.0,0.00033247,2]
[388320289,1759087835361,-153.0,0.00033247,2]
[388320290,1759087835371,-153.0,0.00033247,2]
[388320291,1759087835380,-153.0,0.00033247,2]
[388320292,1759087835389,-153.0,0.00033247,2]
[388320293,1759087835399,-153.0,0.00033247,2]
[388320294,1759087835408,-153.0,0.00033247,2]
[388320295,1759087835417,-153.0,0.00033247,2]
[388320296,1759087835427,-153.0,0.00033247,2]
[388320297,1759087835438,-153.0,0.00033247,2]
[388320298,1759087835448,-153.0,0.00033247,2]
[388320299,1759087835457,-153.0,0.00033247,2]
[388320300,1759087835477,-153.0,0.00033247,2]
[388320301,1759087835486,-153.0,0.00033247,2]
[388320302,1759087835497,-153.0,0.00033247,2]
[388320303,1759087835507,-153.0,0.00033247,2]
[388320304,1759087835524,-153.0,0.00033247,2]
[388320305,1759087835534,-153.0,0.00033247,2]
[388320306,1759087835544,-500.0,0.00033287,120]
[388320307,1759087835555,-160.0,0.00033289,2]
[388320308,1759087835564,-233.82138094,0.00033289,2]
[388320309,1759087835574,-160.0,0.00033289,2]
[388320310,1759087835584,-175.61943067,0.00033289,2]
[388320311,1759087835595,-160.0,0.00033289,2]
[388320312,1759087835604,-160.0,0.00033289,2]
[388320313,1759087835615,-160.0,0.00033289,2]
[388320314,1759087835624,-160.0,0.00033291,2]
[388320315,1759087835634,-372.99456277,0.000333,120]
[388320316,1759087835644,-256.07565556,0.000333,120]
[388320317,1759087835654,-1326.0,0.0003332,7]
[388320318,1759087835663,-860.0,0.00033333,2]
[388320319,1759087835673,-151.0,0.00033405,2]
[388320320,1759087835682,-186.03394466,0.00033417,2]
[388320321,1759087835692,-500.0,0.00033424,120]
[388320322,1759087835702,-257.6,0.00033447,19]
[388320323,1759087835711,-203.0,0.0003346,35]
[388320324,1759087835721,-502.8782373,0.00033492,2]
[388320325,1759087835731,-151.0,0.000335,17]
[388320326,1759087835741,-151.0,0.000335,13]
[388320327,1759087835751,-981.004,0.0003353,2]
[388320328,1759087835760,-2161.0,0.0003353,2]
[388320329,1759087835770,-635.0,0.0003353,2]
[388320330,1759087835779,-410.0,0.0003353,2]
[388320331,1759087835789,-425.659,0.0003353,2]
[388320332,1759087835799,-500.0,0.00033561,120]
[388320333,1759087835808,-168.0,0.00033566,7]
[388320334,1759087835818,-189.35579204,0.000336,3]
[388320335,1759087835828,-500.0,0.00033698,120]
[388320336,1759087835838,-151.0,0.000337,10]
[388320337,1759087835848,-112.27852009,0.000337,15]
[388320353,1759087838708,-810.61830266,0.00028999,2]
[388320354,1759087838718,-36.74717911,0.00028999,2]
[388320356,1759087840367,-773.87112355,0.00028999,2]
[388320357,1759087840376,-810.61830266,0.00028999,2]
[388320358,1759087840385,-810.61830266,0.00028999,2]
[388320359,1759087840393,-810.61830266,0.00028999,2]
[388320360,1759087840403,-810.61830266,0.00028999,2]
[388320361,1759087840412,-810.61830266,0.00028999,2]
[388320362,1759087840420,-607.76382148,0.00028999,2]
[388320519,1759087843516,-202.85448118,0.00028999,2]
[388320521,1759087843526,-810.61830266,0.00028999,2]
[388320523,1759087843535,-810.61830266,0.00028999,2]
[388320525,1759087843544,-810.61830266,0.00028999,2]
[388320527,1759087843554,-810.61830266,0.00028999,2]
[388320529,1759087843563,-386.08,0.00029383,10]
[388320531,1759087843572,-38.72147991,0.000337,15]
[388320533,1759087843581,-185.93006503,0.00033808,30]
[388320535,1759087843592,-500.0,0.00033835,120]
[388320537,1759087843601,-5593.0,0.00033863,2]
[388320540,1759087843610,-176.57500516,0.00033869,2]
[388320542,1759087843619,-1144.29429687,0.00033869,2]
[388320544,1759087843628,-960.0,0.00033881,2]
[388320546,1759087843637,-16971.09482011,0.0003389,2]
[388320548,1759087843648,-375.84981648,0.0003389,2]
[388320550,1759087843659,-592.49184814,0.0003389,2]
[388320559,1759087844044,5000.0,0.00025205,2]
[388320560,1759087846385,-153.571301,0.0002693,10]
[388320561,1759087846395,-153.571301,0.00027859,10]
[388320562,1759087846404,-153.571301,0.00028789,10]
[388320563,1759087846414,-153.571301,0.00029719,10]
[388320564,1759087846422,-5771.7993366,0.00031563,2]
[388320565,1759087846431,-153.571301,0.0003344,2]
[388320566,1759087846441,-283.75426529,0.0003389,2]
[388320581,1759087851830,500.0,0.00025205,2]
[388320582,1759087867148,3989.3933307,0.00025205,2]
[388320583,1759087867170,1010.6066693,0.00025205,2]
[388320584,1759087889709,5000.0,0.00025205,2]
[388320585,1759087912534,3989.4033307,0.00025205,2]
[388320586,1759087912556,1010.5966693,0.00025205,2]
[388320587,1759087921114,1573.44049225,0.00025205,2]
[388320588,1759087936441,2615.05617998,0.00025205,2]
[388320589,1759087944297,5000.0,0.00025205,2]
[388320590,1759087960293,5000.0,0.00025205,2]
[388320591,1759087983673,0.01,0.00025205,2]
[388320592,1759087983696,4999.99,0.00025205,2]
[388320593,1759088006289,1522.54309135,0.00025205,2]
[388320594,1759088008536,300.0,0.000252,2]
[388320597,1759088234002,852.0,0.0002487,7]
[388320598,1759088239253,-362.962681,0.00025706,2]
[388320599,1759088239286,-314.29889832,0.0002645,2]
[388320600,1759088239314,-300.0,0.00026549,2]
[388320601,1759088239342,-160.0,0.0002655,2]
[388320602,1759088239371,-300.0,0.0002655,2]
[388320603,1759088239398,-300.0,0.0002655,2]
[388320604,1759088239426,-300.0,0.0002655,2]
[388320605,1759088239454,-300.0,0.0002655,2]
[388320606,1759088239486,-1200.0,0.0002655,2]
[388320607,1759088249188,-1200.0,0.00026549,2]
[388320608,1759088249584,-9182.29334422,0.0002655,2]
[388320609,1759088249717,-10000.01,0.0002655,2]
[388320610,1759088249830,-10000.01,0.0002655,2]
[388320611,1759088249957,-10000.01,0.0002655,2]
[388320612,1759088250091,-10000.01,0.0002655,2]
[388320613,1759088259206,-817.66665578,0.0002655,2]
[388320614,1759088282798,300.0,0.00026549,2]
[388320615,1759088314382,312.77816218,0.00026549,2]
[388320616,1759088314409,746.11045015,0.00026549,2]
[388320617,1759088314439,746.11045015,0.00026549,2]
[388320618,1759088314464,500.0,0.00026549,2]
[388320619,1759088314496,746.11045015,0.00026549,2]
[388320620,1759088314530,746.11045015,0.00026549,2]
[388320621,1759088314798,746.11045015,0.00026549,2]
[388320622,1759088314826,277.79635924,0.00026549,2]
[388320623,1759088314853,746.11045015,0.00026549,2]
[388320624,1759088314892,746.11045015,0.00026549,2]
[388320625,1759088314935,746.11045015,0.00026549,2]
[388320626,1759088314966,746.11045015,0.00026549,2]
[388320627,1759088315154,259.10811567,0.00026549,2]
[388320628,1759088315178,487.00233448,0.00026549,2]
[388320629,1759088315205,746.11045015,0.00026549,2]
[388320630,1759088315258,746.11045015,0.00026549,2]
[388320631,1759088315297,746.11045015,0.00026549,2]